[Event "Fagernes Open 2021"]
[Site "Fagernes"]
[Date "2021.10.12"]
[Round "3.10"]
[White "Hellesoy, David"]
[Black "Sekkingstad, Thomas"]
[Result "1-0"]
[ECO "B19"]
[WhiteElo "1500"]
[BlackElo "1812"]
[Annotator "NA"]
[PlyCount "141"]
[EventDate "2021.10.10"]
[EventCountry "NOR"]
[SourceTitle "playchess.com"]
[Source "ChessBase"]
[SourceQuality "1"]
[TimeControl "40/5400+30:1800+30"]

1. e4 {[%emt 0:00:00]} c6 {[%emt 0:00:00]} 2. d4 {[%emt 0:00:00]} d5 {[%emt 0:00:00]} 3. Nc3 {[%emt 0:00:00]} dxe4 {[%emt 0:00:00]} 4. Nxe4 {[%emt 0:00:00]} Bf5 {[%emt 0:00:00]} 5. Ng3 {[%emt 0:00:00]} Bg6 {[%emt 0:00:00]} 6. h4 {[%emt 0:00:00]} h6 {[%emt 0:00:00]} 7. Nf3 {[%emt 0:00:00]} Nd7 {[%emt 0:00:00]} 8. h5 {[%emt 0:00:00]} Bh7 {[%emt 0:00:00]} 9. Bd3 {[%emt 0:00:00]} Bxd3 {[%emt 0:00:00]} 10. Qxd3 {[%emt 0:00:00]} Ngf6 {[%emt 0:00:00]} 11. Bd2 {[%emt 0:00:00]} e6 {[%emt 0:00:00]} 12. O-O-O {[%emt 0:00:00]} Qc7 {[%emt 0:00:00]} 13. Kb1 {[%emt 0:00:00]} O-O-O {[%emt 0:00:00]} 14. Ne4 {[%emt 0:00:00]} Nxe4 {[%emt 0:00:00]} 15. Qxe4 {[%emt 0:00:00]} Be7 {[%emt 0:00:00]} 16. c4 {[%emt 0:01:42]} Rhe8 {[%emt 0:00:00]} 17. Bc3 {[%emt 0:05:45]} Bf6 {[%emt 0:00:00]} 18. Ne5 {[%emt 0:02:02]} Nxe5 {[%emt 0:03:51]} 19. dxe5 {[%emt 0:00:56]} Be7 {[%emt 0:01:12]} 20. Qe2 {[%emt 0:06:59]} Rxd1+ {[%emt 0:23:30]} 21. Rxd1 {[%emt 0:00:24]} Rd8 {[%emt 0:00:03]} 22. f4 {[%emt 0:05:30]} Rxd1+ {[%emt 0:03:49]} 23. Qxd1 {[%emt 0:00:12]} Qd7 {[%emt 0:00:07]} 24. Qxd7+ {[%emt 0:05:31]} Kxd7 {[%emt 0:00:04]} 25. Kc2 {[%emt 0:00:27]} b5 {[%emt 0:02:55]} 26. b3 {[%emt 0:01:09]} Bc5 {[%emt 0:11:34]} 27. Kd3 {[%emt 0:02:30]} Kc7 {[%emt 0:00:10]} 28. g4 {[%emt 0:01:51]} g6 $1 {[%emt 0:14:06]} 29. Ke4 {[%emt 0:04:56]} bxc4 {[%emt 0:06:04]} 30. bxc4 {[%emt 0:00:38]} gxh5 {[%emt 0:02:47]} 31. gxh5 {[%emt 0:00:11]} Kb6 {[%emt 0:00:09]} 32. f5 {[%emt 0:03:29]} a6 {[%emt 0:00:33]} 33. fxe6 $2 {[%emt 0:03:07]} (33. Bd2 $18 Bf8 34. f6) 33... fxe6 {[%emt 0:00:09]} 34. Bd2 {[%emt 0:00:54]} Bf8 {[%emt 0:00:06]} 35. Kd4 {[%emt 0:04:10]} a5 {[%emt 0:01:57]} 36. a4 {[%emt 0:01:11]} Bc5+ {[%emt 0:02:19]} 37. Kd3 {[%emt 0:01:35]} Bf8 {[%emt 0:00:20]} 38. Be3+ {[%emt 0:01:30]} c5 {[%emt 0:00:33]} 39. Ke4 {[%emt 0:00:34]} Bg7 {[%emt 0:00:11]} 40. Bf2 {[%emt 0:00:42]} Kc6 {[%emt 0:00:41]} 41. Bh4 {[%emt 0:30:48]} Kb6 {[%emt 0:30:30]} 42. Bf6 {[%emt 0:01:08]} Bf8 {[%emt 0:00:19]} 43. Bd8+ {[%emt 0:02:08]} Ka6 {[%emt 0:00:10]} 44. Kf4 {[%emt 0:01:20]} Bg7 $18 {[%emt 0:02:10]} 45. Be7 {[%emt 0:02:50]} Kb6 {[%emt 0:00:19]} 46. Ke4 {[%emt 0:00:27]} Kc6 {[%emt 0:01:26]} 47. Bd8 {[%emt 0:00:16]} Bf8 {[%emt 0:00:05]} 48. Bxa5 {[%emt 0:01:19]} Be7 {[%emt 0:00:07]} 49. Bd2 {[%emt 0:00:13]} Bf8 {[%emt 0:00:07]} 50. a5 {[%emt 0:01:41]} Kb7 {[%emt 0:03:28]} 51. Kd3 {[%emt 0:00:12]} Bg7 {[%emt 0:00:23]} 52. Bc3 {[%emt 0:00:35]} Bf8 {[%emt 0:01:15]} 53. Kc2 {[%emt 0:00:30]} Ka7 {[%emt 0:00:12]} 54. Kb3 {[%emt 0:00:45]} Kb7 {[%emt 0:00:10]} 55. Bd2 {[%emt 0:01:29]} Bg7 {[%emt 0:00:16]} 56. Bf4 {[%emt 0:00:56]} Bf8 {[%emt 0:01:27]} 57. Ka4 {[%emt 0:01:42]} Ka6 {[%emt 0:00:06]} 58. Be3 {[%emt 0:00:33]} Bg7 {[%emt 0:00:06]} 59. Bxc5 {[%emt 0:01:05]} Bxe5 {[%emt 0:00:05]} 60. Be3 {[%emt 0:00:26]} Bg7 {[%emt 0:00:06]} 61. Bd2 {[%emt 0:01:47]} Bf8 {[%emt 0:00:23]} 62. Kb3 {[%emt 0:00:17]} e5 {[%emt 0:00:57]} 63. Kc2 {[%emt 0:01:42]} e4 {[%emt 0:00:15]} 64. Kd1 {[%emt 0:04:37]} e3 {[%emt 0:00:15]} 65. Bxe3 {[%emt 0:00:49]} Kxa5 {[%emt 0:00:10]} 66. Ke2 {[%emt 0:00:37]} Kb4 {[%emt 0:00:08]} 67. Kd3 {[%emt 0:00:27]} Bg7 {[%emt 0:00:13]} 68. c5 {[%emt 0:01:57]} Kb5 {[%emt 0:00:07]} 69. Ke4 {[%emt 0:00:34]} Bf8 {[%emt 0:00:08]} 70. Kf5 {[%emt 0:00:53]} Bxc5 {[%emt 0:00:06]} 71. Bxc5 {[%emt 0:00:22]} 1-0

[Event "Fagernes Open 2021"]
[Site "Fagernes"]
[Date "2021.10.12"]
[Round "3.11"]
[White "Eriksen, Olai Dyrhaug"]
[Black "Johannessen, Theo N"]
[Result "1-0"]
[ECO "B27"]
[WhiteElo "1809"]
[BlackElo "1668"]
[Annotator "NA"]
[PlyCount "131"]
[EventDate "2021.10.10"]
[EventCountry "NOR"]
[SourceTitle "playchess.com"]
[Source "ChessBase"]
[SourceQuality "1"]
[TimeControl "40/5400+30:1800+30"]

1. e4 {[%emt 0:00:00]} c5 {[%emt 0:00:00]} 2. Nf3 {[%emt 0:00:00]} g6 {[%emt 0:00:00]} 3. d4 {[%emt 0:00:00]} cxd4 {[%emt 0:00:00]} 4. Qxd4 {[%emt 0:00:00]} Nf6 {[%emt 0:00:00]} 5. Qa4 {[%emt 0:00:00]} Nc6 {[%emt 0:09:05]} 6. e5 {[%emt 0:00:00]} Ng8 {[%emt 0:00:26]} 7. Nc3 {[%emt 0:00:00]} Bg7 {[%emt 0:01:22]} 8. Bf4 {[%emt 0:00:00]} f6 {[%emt 0:11:02]} 9. exf6 {[%emt 0:03:03]} Nxf6 {[%emt 0:00:43]} 10. Bb5 {[%emt 0:13:22]} O-O {[%emt 0:03:06]} 11. O-O-O {[%emt 0:03:56]} Kh8 {[%emt 0:12:24]} 12. h4 {[%emt 0:06:30]} d6 {[%emt 0:02:15]} 13. Bg5 {[%emt 0:12:40]} Bf5 {[%emt 0:18:18]} 14. Bxf6 $14 {[%emt 0:01:50]} ({Of course not} 14. Bxc6 bxc6 15. Rhe1 Bd7 $15) 14... Bxf6 {[%emt 0:01:18]} 15. Nd5 {[%emt 0:03:51]} a6 {[%emt 0:03:59]} 16. Bd3 {[%emt 0:05:27]} Qa5 {[%emt 0:01:39]} 17. Qxa5 {[%emt 0:01:56]} Nxa5 {[%emt 0:00:08]} 18. Nxf6 {[%emt 0:04:17]} Rxf6 {[%emt 0:00:12]} 19. Rhe1 {[%emt 0:11:46]} Bxd3 {[%emt 0:01:08]} 20. Rxd3 {[%emt 0:00:14]} Nc6 {[%emt 0:01:30]} 21. a4 {[%emt 0:05:04]} Kg7 {[%emt 0:02:39]} 22. Re4 {[%emt 0:06:56]} e5 {[%emt 0:02:41]} 23. Rb3 {[%emt 0:02:04]} Rb8 {[%emt 0:01:41]} 24. Rc4 {[%emt 0:02:27]} d5 {[%emt 0:06:56]} 25. Rc5 {[%emt 0:00:10]} Rd6 {[%emt 0:00:32]} 26. a5 {[%emt 0:05:00]} e4 {[%emt 0:01:34]} 27. Ng5 {[%emt 0:00:56]} h6 {[%emt 0:00:31]} 28. Nh3 {[%emt 0:00:23]} Nd8 {[%emt 0:02:44]} 29. Nf4 {[%emt 0:02:45]} d4 {[%emt 0:00:48]} 30. Re5 {[%emt 0:00:48]} Nc6 {[%emt 0:03:17]} 31. Rxe4 {[%emt 0:01:03]} Nxa5 {[%emt 0:00:08]} 32. Rd3 {[%emt 0:01:19]} Nc6 {[%emt 0:00:37]} 33. c3 {[%emt 0:00:31]} g5 {[%emt 0:01:37]} 34. hxg5 {[%emt 0:00:42]} hxg5 {[%emt 0:00:09]} 35. Ne6+ {[%emt 0:00:21]} Kf6 {[%emt 0:00:06]} 36. Nxd4 {[%emt 0:00:32]} Nxd4 {[%emt 0:00:38]} 37. Rexd4 {[%emt 0:01:33]} Rxd4 {[%emt 0:00:20]} 38. Rxd4 {[%emt 0:00:04]} Ke6 {[%emt 0:02:39]} 39. Re4+ {[%emt 0:05:28]} Kf5 {[%emt 0:01:08]} 40. f3 {[%emt 0:01:51]} b5 {[%emt 0:01:45]} 41. g4+ {[%emt 0:00:00]} Kf6 {[%emt 0:00:00]} 42. Kd2 {[%emt 0:00:00]} Rh8 {[%emt 0:00:00]} 43. b4 {[%emt 0:02:09]} Rh1 {[%emt 0:00:00]} 44. Re8 {[%emt 0:01:51]} Ra1 {[%emt 0:00:00]} 45. Rf8+ {[%emt 0:02:44]} Kg6 {[%emt 0:00:16]} 46. Rf5 {[%emt 0:01:41]} Rf1 {[%emt 0:02:32]} 47. Ke2 {[%emt 0:01:04]} Ra1 {[%emt 0:01:28]} 48. Rc5 {[%emt 0:01:12]} Kf6 {[%emt 0:01:12]} 49. Rc6+ {[%emt 0:00:27]} Ke5 {[%emt 0:00:30]} 50. Rg6 {[%emt 0:01:44]} Kf4 {[%emt 0:00:08]} 51. Rf6+ {[%emt 0:00:08]} Kg3 {[%emt 0:00:05]} 52. Rf5 {[%emt 0:01:01]} Kh4 {[%emt 0:04:38]} 53. Ke3 {[%emt 0:04:21]} Re1+ {[%emt 0:13:41]} 54. Kd4 {[%emt 0:01:25]} Re6 {[%emt 0:00:26]} 55. Kc5 {[%emt 0:00:38]} Rg6 {[%emt 0:01:36]} 56. f4 {[%emt 0:06:24]} gxf4 {[%emt 0:02:05]} 57. Rxf4 {[%emt 0:01:12]} Re6 {[%emt 0:02:49]} 58. Rd4 {[%emt 0:00:39]} Re3 {[%emt 0:00:35]} 59. c4 {[%emt 0:03:11]} Rc3 {[%emt 0:00:49]} 60. Kd5 {[%emt 0:00:15]} bxc4 {[%emt 0:01:20]} 61. Rxc4 {[%emt 0:00:05]} Ra3 {[%emt 0:01:28]} 62. Kc5 {[%emt 0:01:41]} a5 {[%emt 0:00:31]} 63. b5 {[%emt 0:00:06]} Ra1 {[%emt 0:00:54]} 64. b6 {[%emt 0:00:33]} a4 {[%emt 0:00:16]} 65. b7 {[%emt 0:00:15]} Rb1 {[%emt 0:00:18]} 66. Rb4 {[%emt 0:00:11]} 1-0

[Event "Fagernes Open 2021"]
[Site "Fagernes"]
[Date "2021.10.12"]
[Round "3.12"]
[White "Ostensen, Nicolai Maxime"]
[Black "Skigelstrand, Live Jorgensen"]
[Result "1-0"]
[ECO "A23"]
[WhiteElo "1768"]
[BlackElo "1649"]
[Annotator "NA"]
[PlyCount "57"]
[EventDate "2021.10.10"]
[EventCountry "NOR"]
[SourceTitle "playchess.com"]
[Source "ChessBase"]
[SourceQuality "1"]
[TimeControl "40/5400+30:1800+30"]

1. c4 {[%emt 0:00:00]} e5 {[%emt 0:00:00]} 2. Nc3 {[%emt 0:00:00]} Nf6 {[%emt 0:00:00]} 3. g3 {[%emt 0:00:00]} c6 {[%emt 0:00:00]} 4. Bg2 {[%emt 0:00:00]} d5 {[%emt 0:00:00]} 5. cxd5 {[%emt 0:00:00]} cxd5 {[%emt 0:00:00]} 6. d3 {[%emt 0:00:00]} Bb4 {[%emt 0:00:00]} 7. Bd2 {[%emt 0:00:46]} Nc6 {[%emt 0:00:00]} 8. Nf3 {[%emt 0:04:36]} O-O {[%emt 0:00:31]} 9. O-O {[%emt 0:00:22]} Re8 {[%emt 0:00:55]} 10. a3 {[%emt 0:01:45]} Bxc3 {[%emt 0:03:46]} 11. Bxc3 {[%emt 0:01:07]} d4 {[%emt 0:01:34]} 12. Bd2 {[%emt 0:02:31]} Qb6 {[%emt 0:02:18]} 13. Rb1 {[%emt 0:04:11]} Nd5 {[%emt 0:01:24]} 14. b4 {[%emt 0:04:22]} a6 {[%emt 0:10:47]} 15. Ng5 {[%emt 0:02:31]} Nc7 {[%emt 0:06:43]} 16. Ne4 {[%emt 0:02:20]} Be6 {[%emt 0:03:03]} 17. Qc1 {[%emt 0:03:20]} Rad8 {[%emt 0:10:16]} 18. Qc5 {[%emt 0:00:28]} Qxc5 {[%emt 0:08:38]} 19. Nxc5 {[%emt 0:00:48]} Bc8 {[%emt 0:00:05]} 20. Rfc1 {[%emt 0:00:20]} Rd6 {[%emt 0:01:34]} 21. a4 {[%emt 0:01:14]} Ne6 {[%emt 0:03:21]} 22. Nxa6 {[%emt 0:01:56]} f5 {[%emt 0:03:58]} 23. Nc5 {[%emt 0:01:18]} Nxc5 {[%emt 0:01:06]} 24. Rxc5 {[%emt 0:00:27]} e4 {[%emt 0:00:02]} 25. b5 {[%emt 0:01:29]} Nb8 {[%emt 0:01:11]} 26. Bf4 {[%emt 0:00:19]} Rde6 {[%emt 0:04:26]} 27. Bxb8 {[%emt 0:00:22]} exd3 {[%emt 0:00:18]} 28. exd3 {[%emt 0:00:10]} f4 {[%emt 0:00:53]} 29. Bd5 {[%emt 0:00:29]} 1-0

[Event "Fagernes Open 2021"]
[Site "Fagernes"]
[Date "2021.10.12"]
[Round "3.13"]
[White "Johannessen, Heine N"]
[Black "Carlin, Tormod"]
[Result "1-0"]
[ECO "D44"]
[WhiteElo "1930"]
[BlackElo "1554"]
[Annotator "NA"]
[PlyCount "107"]
[EventDate "2021.10.10"]
[EventCountry "NOR"]
[SourceTitle "playchess.com"]
[Source "ChessBase"]
[SourceQuality "1"]
[TimeControl "40/5400+30:1800+30"]

1. d4 {[%emt 0:00:00]} d5 {[%emt 0:00:00]} 2. Nf3 {[%emt 0:00:00]} Nf6 {[%emt 0:00:00]} 3. c4 {[%emt 0:00:00]} c6 {[%emt 0:00:00]} 4. Nc3 {[%emt 0:00:00]} e6 {[%emt 0:00:00]} 5. Bg5 {[%emt 0:00:00]} dxc4 {[%emt 0:00:00]} 6. e4 {[%emt 0:00:00]} b5 {[%emt 0:00:00]} 7. e5 {[%emt 0:00:00]} h6 {[%emt 0:00:00]} 8. Bh4 {[%emt 0:00:00]} g5 {[%emt 0:00:00]} 9. exf6 {[%emt 0:00:00]} gxh4 {[%emt 0:00:00]} 10. Ne5 {[%emt 0:00:00]} Qxf6 {[%emt 0:00:00]} 11. g3 {[%emt 0:00:00]} Bb7 {[%emt 0:04:49]} 12. Bg2 {[%emt 0:00:00]} hxg3 {[%emt 0:00:16]} 13. hxg3 {[%emt 0:00:00]} Bb4 {[%emt 0:05:57]} 14. a4 {[%emt 0:07:17]} a6 {[%emt 0:06:23]} 15. axb5 {[%emt 0:05:06]} axb5 {[%emt 0:00:20]} 16. Rxa8 {[%emt 0:00:43]} Bxa8 {[%emt 0:00:05]} 17. Qa1 {[%emt 0:00:45]} Bxc3+ {[%emt 0:05:43]} 18. bxc3 {[%emt 0:00:09]} Qf5 {[%emt 0:05:48]} 19. O-O {[%emt 0:03:03]} O-O {[%emt 0:00:51]} 20. Qxa8 {[%emt 0:01:41]} Nd7 {[%emt 0:00:10]} 21. Qxc6 {[%emt 0:00:43]} Nxe5 {[%emt 0:00:30]} 22. dxe5 {[%emt 0:00:21]} Qxe5 {[%emt 0:00:06]} 23. Rd1 {[%emt 0:02:32]} Qxc3 {[%emt 0:02:40]} 24. Qxb5 {[%emt 0:00:39]} Qb3 {[%emt 0:17:41]} 25. Qxb3 {[%emt 0:01:50]} cxb3 {[%emt 0:00:06]} 26. Rb1 {[%emt 0:00:21]} Rb8 {[%emt 0:00:06]} 27. Rb2 {[%emt 0:00:13]} Kg7 {[%emt 0:00:33]} 28. Bf3 {[%emt 0:00:19]} Kg6 {[%emt 0:00:53]} 29. Bd1 {[%emt 0:00:18]} e5 {[%emt 0:00:06]} 30. Rxb3 {[%emt 0:00:59]} Rc8 {[%emt 0:04:59]} 31. Be2 {[%emt 0:09:29]} f5 {[%emt 0:00:29]} 32. Rb5 {[%emt 0:03:20]} Re8 {[%emt 0:00:19]} 33. Kg2 {[%emt 0:00:32]} Kg5 {[%emt 0:00:09]} 34. Bd3 {[%emt 0:26:26]} f4 {[%emt 0:02:30]} 35. Kf3 {[%emt 0:09:02]} fxg3 {[%emt 0:00:40]} 36. Kxg3 {[%emt 0:00:37]} h5 {[%emt 0:01:58]} 37. f4+ {[%emt 0:10:37]} Kf6 {[%emt 0:01:01]} 38. Rb6+ {[%emt 0:00:10]} Kg7 {[%emt 0:01:12]} 39. f5 {[%emt 0:01:02]} e4 {[%emt 0:01:30]} 40. Be2 {[%emt 0:00:31]} e3 {[%emt 0:04:04]} 41. Kf4 {[%emt 0:31:25]} h4 {[%emt 0:30:21]} 42. Rg6+ {[%emt 0:00:17]} Kf8 {[%emt 0:03:31]} 43. Rh6 {[%emt 0:00:16]} Kg7 {[%emt 0:02:05]} 44. Rxh4 {[%emt 0:00:25]} Rf8 {[%emt 0:01:53]} 45. Rh3 {[%emt 0:00:42]} Kg8 {[%emt 0:00:19]} 46. Rxe3 {[%emt 0:00:10]} Kg7 {[%emt 0:00:12]} 47. Kg5 {[%emt 0:00:04]} Rb8 {[%emt 0:01:21]} 48. f6+ {[%emt 0:00:32]} Kf7 {[%emt 0:00:14]} 49. Bh5+ {[%emt 0:00:53]} Kf8 {[%emt 0:00:17]} 50. Kg6 {[%emt 0:00:14]} Rb6 {[%emt 0:00:27]} 51. Kg5 {[%emt 0:00:19]} Rxf6 {[%emt 0:01:33]} 52. Kxf6 {[%emt 0:00:09]} Kg8 {[%emt 0:00:12]} 53. Bf7+ {[%emt 0:00:06]} Kh8 {[%emt 0:00:31]} 54. Rh3# {[%emt 0:00:02]} 1-0

[Event "Fagernes Open 2021"]
[Site "Fagernes"]
[Date "2021.10.12"]
[Round "3.14"]
[White "Langvik, Ulrikke"]
[Black "Fredriksen, Jan Gunnar"]
[Result "0-1"]
[ECO "A40"]
[WhiteElo "1542"]
[BlackElo "1835"]
[Annotator "NA"]
[PlyCount "56"]
[EventDate "2021.10.10"]
[EventCountry "NOR"]
[SourceTitle "playchess.com"]
[Source "ChessBase"]
[SourceQuality "1"]
[TimeControl "40/5400+30:1800+30"]

1. d4 {[%emt 0:00:00]} e5 {[%emt 0:00:00]} 2. dxe5 {[%emt 0:00:00]} Nc6 {[%emt 0:00:00]} 3. Nf3 {[%emt 0:00:00]} Qe7 {[%emt 0:00:00]} 4. g3 {[%emt 0:04:12]} Nxe5 {[%emt 0:00:00]} 5. Nxe5 {[%emt 0:00:34]} Qxe5 {[%emt 0:00:00]} 6. Bg2 {[%emt 0:00:05]} c6 {[%emt 0:00:00]} 7. O-O {[%emt 0:01:32]} h5 {[%emt 0:00:00]} 8. Nc3 {[%emt 0:11:08]} h4 {[%emt 0:21:35]} 9. Bf4 {[%emt 0:03:00]} Qe6 {[%emt 0:00:53]} 10. Ne4 {[%emt 0:17:43]} d5 {[%emt 0:02:33]} 11. Ng5 {[%emt 0:01:59]} Qg6 {[%emt 0:01:18]} 12. Re1 {[%emt 0:13:35]} hxg3 {[%emt 0:02:02]} 13. fxg3 {[%emt 0:03:40]} Be7 {[%emt 0:02:08]} (13... Bc5+ $17 14. Kf1 Rxh2) 14. e4 {[%emt 0:15:27]} d4 {[%emt 0:09:05]} 15. Nf3 {[%emt 0:01:38]} Bc5 {[%emt 0:07:25]} 16. Qd3 {[%emt 0:01:57]} Be6 {[%emt 0:07:11]} 17. a3 {[%emt 0:02:02]} Nf6 {[%emt 0:03:31]} 18. b4 {[%emt 0:01:29]} Bb6 {[%emt 0:00:45]} 19. a4 {[%emt 0:02:29]} a6 {[%emt 0:06:38]} 20. Bd6 $17 {[%emt 0:03:28]} (20. Ng5 $11 {keeps the balance.}) 20... Nd7 {[%emt 0:06:06]} 21. e5 {[%emt 0:02:55]} Bf5 {[%emt 0:01:12]} 22. Qd2 {[%emt 0:01:16]} d3+ {[%emt 0:04:18]} 23. Kh1 {[%emt 0:00:10]} dxc2 {[%emt 0:05:30]} 24. Rac1 {[%emt 0:00:53]} O-O-O {[%emt 0:05:28]} 25. b5 {[%emt 0:04:33]} Nxe5 {[%emt 0:02:32]} 26. Nxe5 {[%emt 0:00:26]} Rxh2+ {[%emt 0:01:43]} 27. Kxh2 {[%emt 0:00:21]} Qh5+ {[%emt 0:00:19]} 28. Bh3 {[%emt 0:00:15]} Qxh3# {[%emt 0:00:05]} 0-1

[Event "Fagernes Open 2021"]
[Site "Fagernes"]
[Date "2021.10.12"]
[Round "3.16"]
[White "Haugen, Lars Tormod"]
[Black "Schouten, Ken Ronny"]
[Result "1-0"]
[ECO "A27"]
[WhiteElo "1756"]
[BlackElo "1318"]
[Annotator "NA"]
[PlyCount "55"]
[EventDate "2021.10.10"]
[EventCountry "NOR"]
[SourceTitle "playchess.com"]
[Source "ChessBase"]
[SourceQuality "1"]
[TimeControl "40/5400+30:1800+30"]

1. c4 {[%emt 0:00:00]} e5 {[%emt 0:00:00]} 2. Nc3 {[%emt 0:00:00]} Nc6 {[%emt 0:00:00]} 3. Nf3 {[%emt 0:00:00]} Bb4 {[%emt 0:00:00]} 4. Nd5 {[%emt 0:00:00]} Bc5 {[%emt 0:00:42]} 5. d3 {[%emt 0:11:32]} d6 {[%emt 0:08:41]} 6. a3 {[%emt 0:05:55]} a5 {[%emt 0:03:57]} 7. Bd2 {[%emt 0:02:02]} Nge7 {[%emt 0:10:52]} 8. b4 {[%emt 0:16:19]} axb4 {[%emt 0:01:51]} 9. axb4 {[%emt 0:00:44]} Rxa1 {[%emt 0:00:11]} 10. Qxa1 {[%emt 0:00:04]} Bd4 {[%emt 0:08:19]} 11. Nxd4 {[%emt 0:00:46]} Nxd4 {[%emt 0:00:08]} 12. Ne3 {[%emt 0:07:16]} O-O {[%emt 0:04:18]} 13. Qa2 {[%emt 0:01:22]} Be6 {[%emt 0:05:59]} 14. Bc3 {[%emt 0:17:41]} Nef5 {[%emt 0:09:13]} 15. Nxf5 {[%emt 0:01:44]} Nxf5 {[%emt 0:02:58]} 16. g3 {[%emt 0:03:26]} b5 {[%emt 0:03:44]} 17. Bg2 {[%emt 0:02:15]} bxc4 {[%emt 0:00:46]} 18. dxc4 {[%emt 0:00:43]} Qc8 {[%emt 0:06:17]} 19. O-O {[%emt 0:01:04]} Ne7 {[%emt 0:02:28]} 20. Rc1 {[%emt 0:02:33]} f5 {[%emt 0:08:26]} 21. e3 {[%emt 0:02:16]} c5 {[%emt 0:01:42]} 22. b5 {[%emt 0:02:02]} Qd7 {[%emt 0:00:27]} 23. Qe2 {[%emt 0:00:39]} Nc8 {[%emt 0:02:48]} 24. Ba5 {[%emt 0:04:22]} Qa7 {[%emt 0:01:33]} 25. Qd2 {[%emt 0:00:58]} Qf7 {[%emt 0:02:24]} 26. b6 {[%emt 0:04:11]} Bxc4 {[%emt 0:03:24]} 27. Rxc4 {[%emt 0:00:58]} Qxc4 {[%emt 0:00:22]} 28. Bd5+ {[%emt 0:00:19]} 1-0

[Event "Fagernes Open 2021"]
[Site "Fagernes"]
[Date "2021.10.12"]
[Round "3.17"]
[White "Orban, Tiberiu"]
[Black "Skotheim, Havard"]
[Result "1-0"]
[ECO "E18"]
[WhiteElo "1731"]
[BlackElo "1326"]
[Annotator "NA"]
[PlyCount "117"]
[EventDate "2021.10.10"]
[EventCountry "NOR"]
[SourceTitle "playchess.com"]
[Source "ChessBase"]
[SourceQuality "1"]
[TimeControl "40/5400+30:1800+30"]

1. d4 {[%emt 0:00:00]} Nf6 {[%emt 0:00:00]} 2. Nf3 {[%emt 0:00:00]} e6 {[%emt 0:00:00]} 3. g3 {[%emt 0:00:00]} b6 {[%emt 0:00:00]} 4. Bg2 {[%emt 0:00:00]} Bb7 {[%emt 0:00:00]} 5. O-O {[%emt 0:00:00]} Be7 {[%emt 0:00:00]} 6. c4 {[%emt 0:00:27]} c5 {[%emt 0:00:25]} 7. dxc5 {[%emt 0:01:53]} bxc5 {[%emt 0:00:57]} 8. Nc3 {[%emt 0:00:56]} O-O {[%emt 0:02:03]} 9. b3 {[%emt 0:01:19]} d5 {[%emt 0:06:53]} 10. Ne5 {[%emt 0:02:09]} Nc6 {[%emt 0:02:06]} 11. Nxc6 {[%emt 0:03:35]} Bxc6 {[%emt 0:00:14]} 12. Bb2 {[%emt 0:00:52]} Rc8 {[%emt 0:07:50]} 13. cxd5 {[%emt 0:01:51]} exd5 {[%emt 0:00:51]} 14. Qc2 {[%emt 0:00:31]} Qc7 {[%emt 0:04:58]} 15. Rfd1 {[%emt 0:00:47]} d4 {[%emt 0:02:51]} 16. Ne4 {[%emt 0:00:31]} Nxe4 {[%emt 0:02:49]} 17. Bxe4 {[%emt 0:00:09]} Bxe4 {[%emt 0:00:57]} 18. Qxe4 {[%emt 0:00:13]} Rfe8 {[%emt 0:02:01]} 19. Qg4 {[%emt 0:00:37]} Qb6 {[%emt 0:07:40]} 20. e3 {[%emt 0:00:18]} Qg6 {[%emt 0:06:01]} 21. Qxg6 {[%emt 0:01:04]} hxg6 {[%emt 0:00:12]} 22. exd4 {[%emt 0:00:24]} Bf6 {[%emt 0:01:25]} 23. Rab1 {[%emt 0:00:10]} Re2 {[%emt 0:01:15]} 24. Ba1 {[%emt 0:02:06]} cxd4 {[%emt 0:02:39]} 25. Bxd4 {[%emt 0:01:30]} Bxd4 {[%emt 0:00:51]} 26. Rxd4 {[%emt 0:00:06]} Rxa2 {[%emt 0:01:15]} 27. Ra4 {[%emt 0:00:33]} Rxa4 {[%emt 0:02:30]} 28. bxa4 {[%emt 0:00:05]} a5 {[%emt 0:00:37]} 29. Rb5 {[%emt 0:00:10]} Ra8 {[%emt 0:00:44]} 30. Kf1 {[%emt 0:03:59]} Kf8 {[%emt 0:03:01]} 31. h4 {[%emt 0:00:15]} Ke7 {[%emt 0:02:15]} 32. Ke2 {[%emt 0:00:08]} Kd6 {[%emt 0:01:41]} 33. Kd3 {[%emt 0:00:20]} Kc6 {[%emt 0:01:08]} 34. Kc4 {[%emt 0:00:54]} f5 {[%emt 0:04:13]} 35. h5 {[%emt 0:00:16]} gxh5 {[%emt 0:04:44]} 36. Rxf5 {[%emt 0:00:09]} Kb6 {[%emt 0:02:39]} 37. Rxh5 {[%emt 0:00:52]} Rc8+ {[%emt 0:01:07]} 38. Kb3 {[%emt 0:00:17]} Rc1 {[%emt 0:03:21]} 39. Rg5 {[%emt 0:00:31]} Rf1 {[%emt 0:05:02]} 40. f4 {[%emt 0:02:08]} Rf3+ {[%emt 0:01:22]} 41. Kc4 {[%emt 0:30:07]} Ra3 {[%emt 0:30:47]} 42. Rg6+ {[%emt 0:00:09]} Kc7 {[%emt 0:01:01]} 43. Rxg7+ {[%emt 0:00:25]} Kd6 {[%emt 0:00:22]} 44. Rg6+ {[%emt 0:00:11]} Ke7 {[%emt 0:00:32]} 45. Kb5 {[%emt 0:00:05]} Kf7 {[%emt 0:00:52]} 46. Rg5 {[%emt 0:00:07]} Rb3+ {[%emt 0:00:38]} 47. Kxa5 {[%emt 0:00:09]} Kf6 {[%emt 0:00:28]} 48. Ka6 {[%emt 0:00:26]} Ra3 {[%emt 0:00:17]} 49. a5 {[%emt 0:00:18]} Ke6 {[%emt 0:00:38]} 50. g4 {[%emt 0:00:41]} Kf6 {[%emt 0:00:14]} 51. Rb5 {[%emt 0:00:37]} Ra4 {[%emt 0:00:17]} 52. g5+ {[%emt 0:00:38]} Kg6 {[%emt 0:00:11]} 53. Rb6+ {[%emt 0:00:22]} Kg7 {[%emt 0:00:22]} 54. f5 {[%emt 0:00:16]} Rg4 {[%emt 0:00:17]} 55. Rb7+ {[%emt 0:00:22]} Kg8 {[%emt 0:00:32]} 56. g6 {[%emt 0:00:10]} Rg5 {[%emt 0:00:17]} 57. Rf7 {[%emt 0:00:17]} Rg1 {[%emt 0:00:55]} 58. Ka7 {[%emt 0:00:08]} Ra1 {[%emt 0:00:35]} 59. a6 {[%emt 0:00:14]} 1-0